[Event "*** Titled Tuesday Blitz"]
[Site "Chess.com"]
[Date "2020.11.03"]
[Round "3"]
[White "Atousa1"]
[Black "CaspiIsrael"]
[Result "1-0"]
[WhiteElo "2412"]
[BlackElo "2607"]
[TimeControl "180+1"]
[EndTime "10:30:48 PST"]
[Termination "Atousa1 won on time"]

1. e4 {[%clk 0:03:00.9]} 1... e5 {[%clk 0:02:59]} 2. Nf3 {[%clk 0:03:00.9]} 2...
Nc6 {[%clk 0:02:58.9]} 3. Bb5 {[%clk 0:03:00.1]} 3... g6 {[%clk 0:02:58.7]} 4.
d4 {[%clk 0:02:51.2]} 4... exd4 {[%clk 0:02:58.5]} 5. Bg5 {[%clk 0:02:46.4]}
5... Be7 {[%clk 0:02:58.8]} 6. Bxe7 {[%clk 0:02:44.9]} 6... Qxe7 {[%clk
0:02:59.7]} 7. O-O {[%clk 0:02:44.1]} 7... Nf6 {[%clk 0:02:57.7]} 8. e5 {[%clk
0:02:37.1]} 8... Ng4 {[%clk 0:02:29.8]} 9. Bxc6 {[%clk 0:02:24]} 9... dxc6
{[%clk 0:02:30.7]} 10. Qxd4 {[%clk 0:02:24.3]} 10... O-O {[%clk 0:02:28.4]} 11.
Nc3 {[%clk 0:02:22.9]} 11... Re8 {[%clk 0:02:16.6]} 12. Rfe1 {[%clk 0:02:20.3]}
12... Bf5 {[%clk 0:01:56.1]} 13. Qf4 {[%clk 0:02:11.4]} 13... Qc5 {[%clk
0:01:47.9]} 14. Re2 {[%clk 0:01:49.7]} 14... f6 {[%clk 0:01:47.5]} 15. Rae1
{[%clk 0:01:35.4]} 15... fxe5 {[%clk 0:01:31.1]} 16. Nxe5 {[%clk 0:01:36.3]}
16... Nxe5 {[%clk 0:01:29.7]} 17. Rxe5 {[%clk 0:01:36.8]} 17... Rxe5 {[%clk
0:01:29.9]} 18. Qxe5 {[%clk 0:01:34.2]} 18... Qxe5 {[%clk 0:01:24.8]} 19. Rxe5
{[%clk 0:01:35.1]} 19... Bxc2 {[%clk 0:01:18.8]} 20. Re7 {[%clk 0:01:34]} 20...
Rc8 {[%clk 0:01:16.4]} 21. g4 {[%clk 0:01:29.6]} 21... g5 {[%clk 0:01:15.2]} 22.
Kg2 {[%clk 0:01:25.4]} 22... Kf8 {[%clk 0:01:14.9]} 23. Rd7 {[%clk 0:01:19.6]}
23... Bg6 {[%clk 0:01:04]} 24. Kg3 {[%clk 0:01:18.5]} 24... b6 {[%clk
0:00:53.9]} 25. h4 {[%clk 0:01:17.3]} 25... h6 {[%clk 0:00:43.5]} 26. h5 {[%clk
0:01:12.6]} 26... Bc2 {[%clk 0:00:24.5]} 27. f4 {[%clk 0:01:12.4]} 27... gxf4+
{[%clk 0:00:24.1]} 28. Kxf4 {[%clk 0:01:13.3]} 28... a5 {[%clk 0:00:22.5]} 29.
Ke5 {[%clk 0:01:02.2]} 29... Ke8 {[%clk 0:00:13.4]} 30. Rg7 {[%clk 0:00:57]}
30... Kf8 {[%clk 0:00:12.3]} 31. Kf6 {[%clk 0:00:57.1]} 31... Rd8 {[%clk
0:00:12]} 32. Rxc7 {[%clk 0:00:55.7]} 32... Rd6+ {[%clk 0:00:10.3]} 33. Ke5
{[%clk 0:00:56.1]} 33... Rd2 {[%clk 0:00:09.3]} 34. Rxc6 {[%clk 0:00:52.1]}
34... Rg2 {[%clk 0:00:09.3]} 35. Rxb6 {[%clk 0:00:35.9]} 35... Kg7 {[%clk
0:00:08]} 36. Rb7+ {[%clk 0:00:33.2]} 36... Kh8 {[%clk 0:00:08]} 37. Kf4 {[%clk
0:00:30.9]} 37... Bd3 {[%clk 0:00:06.3]} 38. Nd5 {[%clk 0:00:28.7]} 38... Kg8
{[%clk 0:00:05]} 39. Nf6+ {[%clk 0:00:27.5]} 39... Kf8 {[%clk 0:00:05.1]} 40.
Ra7 {[%clk 0:00:26.7]} 40... Rxb2 {[%clk 0:00:03.8]} 41. Nd7+ {[%clk 0:00:23.4]}
41... Ke8 {[%clk 0:00:02.4]} 42. Ne5 {[%clk 0:00:23.1]} 1-0

[Event "*** Titled Tuesday Blitz"]
[Site "Chess.com"]
[Date "2020.11.03"]
[Round "3"]
[White "GOGIEFF"]
[Black "tdf98pantani"]
[Result "0-1"]
[WhiteElo "2896"]
[BlackElo "2697"]
[TimeControl "180+1"]
[EndTime "10:30:49 PST"]
[Termination "tdf98pantani won by resignation"]

1. d4 {[%clk 0:03:00.9]} 1... Nf6 {[%clk 0:02:59.8]} 2. c4 {[%clk 0:03:00.7]}
2... e6 {[%clk 0:02:59.7]} 3. Nc3 {[%clk 0:03:00.9]} 3... Bb4 {[%clk 0:02:59.4]}
4. e3 {[%clk 0:03:01.1]} 4... O-O {[%clk 0:02:58.7]} 5. Bd3 {[%clk 0:03:01.4]}
5... c5 {[%clk 0:02:58]} 6. Nf3 {[%clk 0:03:01.5]} 6... Bxc3+ {[%clk 0:02:57.8]}
7. bxc3 {[%clk 0:03:01.2]} 7... d6 {[%clk 0:02:58.2]} 8. O-O {[%clk 0:02:56.5]}
8... Nc6 {[%clk 0:02:58.4]} 9. Nd2 {[%clk 0:02:56]} 9... e5 {[%clk 0:02:58.3]}
10. d5 {[%clk 0:02:55.1]} 10... Ne7 {[%clk 0:02:57.7]} 11. f3 {[%clk 0:02:55.5]}
11... h6 {[%clk 0:02:42.9]} 12. Rf2 {[%clk 0:02:54.3]} 12... Nh7 {[%clk
0:02:42.9]} 13. Qc2 {[%clk 0:02:49]} 13... f5 {[%clk 0:02:40.9]} 14. Nf1 {[%clk
0:02:46.4]} 14... Nf6 {[%clk 0:02:39.1]} 15. Ng3 {[%clk 0:02:41.2]} 15... g6
{[%clk 0:02:36]} 16. a4 {[%clk 0:02:38.8]} 16... a5 {[%clk 0:02:32.1]} 17. Rb1
{[%clk 0:02:37.6]} 17... b6 {[%clk 0:02:31.6]} 18. Nf1 {[%clk 0:02:14.1]} 18...
Bd7 {[%clk 0:02:30.5]} 19. Qa2 {[%clk 0:02:03]} 19... Nc8 {[%clk 0:02:24.2]} 20.
Rfb2 {[%clk 0:01:58.7]} 20... Rb8 {[%clk 0:02:07]} 21. f4 {[%clk 0:01:57.9]}
21... Qe8 {[%clk 0:01:58.7]} 22. Bc2 {[%clk 0:01:57.5]} 22... g5 {[%clk
0:01:49.4]} 23. Bd2 {[%clk 0:01:55.8]} 23... Ne4 {[%clk 0:01:39.3]} 24. Bxe4
{[%clk 0:01:32]} 24... fxe4 {[%clk 0:01:39.1]} 25. fxe5 {[%clk 0:01:32.5]} 25...
dxe5 {[%clk 0:01:32.5]} 26. Ng3 {[%clk 0:01:29.5]} 26... Qg6 {[%clk 0:01:28.5]}
27. Rb3 {[%clk 0:01:19.7]} 27... h5 {[%clk 0:01:27.9]} 28. Qb2 {[%clk
0:01:08.2]} 28... h4 {[%clk 0:01:26.2]} 29. Nf1 {[%clk 0:01:08.3]} 29... Bxa4
{[%clk 0:01:22.8]} 30. Ra3 {[%clk 0:01:08.7]} 30... Bd7 {[%clk 0:01:16.5]} 31.
Rxa5 {[%clk 0:01:06.8]} 31... Nd6 {[%clk 0:01:16.7]} 32. Ra7 {[%clk 0:01:06.9]}
32... Rf7 {[%clk 0:01:12.3]} 33. h3 {[%clk 0:00:59.7]} 33... g4 {[%clk
0:01:12.1]} 34. hxg4 {[%clk 0:00:59.1]} 34... Qxg4 {[%clk 0:01:09.8]} 35. Be1
{[%clk 0:00:55.5]} 35... h3 {[%clk 0:01:07.3]} 36. Nh2 {[%clk 0:00:54.1]} 36...
Qg5 {[%clk 0:01:04.1]} 37. Qe2 {[%clk 0:00:50.5]} 37... Nxc4 {[%clk 0:01:00.2]}
38. g3 {[%clk 0:00:38.4]} 38... Qxe3+ {[%clk 0:00:44.3]} 39. Qxe3 {[%clk
0:00:37.9]} 39... Nxe3 {[%clk 0:00:45.2]} 40. Bf2 {[%clk 0:00:38.4]} 40... Nxd5
{[%clk 0:00:38.8]} 41. Bxc5 {[%clk 0:00:30]} 41... Nxc3 {[%clk 0:00:39]} 42. Rb2
{[%clk 0:00:30.5]} 42... Nb5 {[%clk 0:00:30.1]} 43. Rxd7 {[%clk 0:00:29.3]}
43... Rxd7 {[%clk 0:00:27.1]} 44. Rxb5 {[%clk 0:00:29.5]} 44... Rd1+ {[%clk
0:00:27]} 45. Kf2 {[%clk 0:00:29.4]} 45... Rd2+ {[%clk 0:00:27.2]} 46. Kg1
{[%clk 0:00:29.8]} 46... Rg2+ {[%clk 0:00:22.1]} 47. Kh1 {[%clk 0:00:29.9]}
47... Rd8 {[%clk 0:00:17.7]} 0-1

[Event "*** Titled Tuesday Blitz"]
[Site "Chess.com"]
[Date "2020.11.03"]
[Round "3"]
[White "VladaSviridova"]
[Black "Region_07"]
[Result "0-1"]
[WhiteElo "2296"]
[BlackElo "2455"]
[TimeControl "180+1"]
[EndTime "10:30:49 PST"]
[Termination "Region_07 won on time"]

1. d4 {[%clk 0:03:00.9]} 1... d5 {[%clk 0:02:58.6]} 2. c4 {[%clk 0:02:59.9]}
2... Nc6 {[%clk 0:02:58.6]} 3. Nf3 {[%clk 0:02:59.9]} 3... Bg4 {[%clk
0:02:57.4]} 4. e3 {[%clk 0:03:00]} 4... e5 {[%clk 0:02:56.9]} 5. Qb3 {[%clk
0:03:00]} 5... Bxf3 {[%clk 0:02:53.5]} 6. gxf3 {[%clk 0:02:59.2]} 6... Bb4+
{[%clk 0:02:43.1]} 7. Bd2 {[%clk 0:02:58.5]} 7... Bxd2+ {[%clk 0:02:42.9]} 8.
Nxd2 {[%clk 0:02:58.6]} 8... exd4 {[%clk 0:02:38.8]} 9. cxd5 {[%clk 0:02:57.5]}
9... dxe3 {[%clk 0:02:30.8]} 10. fxe3 {[%clk 0:02:47]} 10... Qh4+ {[%clk
0:02:18.6]} 11. Kd1 {[%clk 0:02:46.3]} 11... Nce7 {[%clk 0:01:53.2]} 12. Qxb7
{[%clk 0:02:36.8]} 12... Rd8 {[%clk 0:01:49.7]} 13. Bb5+ {[%clk 0:01:46.2]}
13... Kf8 {[%clk 0:01:48.5]} 14. e4 {[%clk 0:01:44.5]} 14... Nf6 {[%clk
0:01:27.1]} 15. Rc1 {[%clk 0:01:35]} 15... Nexd5 {[%clk 0:01:04.6]} 16. exd5
{[%clk 0:01:20]} 16... Nxd5 {[%clk 0:01:02.9]} 17. Kc2 {[%clk 0:01:09.2]} 17...
Qb4 {[%clk 0:00:47.5]} 18. Rhd1 {[%clk 0:01:02.6]} 18... Ne3+ {[%clk 0:00:33.6]}
19. Kb1 {[%clk 0:01:02.3]} 19... Nxd1 {[%clk 0:00:32.3]} 20. Rxd1 {[%clk
0:01:00.6]} 20... Rxd2 {[%clk 0:00:10.2]} 21. Qc8+ {[%clk 0:00:37.7]} 21... Ke7
{[%clk 0:00:09.2]} 22. Qxc7+ {[%clk 0:00:34.9]} 22... Kf6 {[%clk 0:00:09.2]} 23.
Qc6+ {[%clk 0:00:31]} 23... Kg5 {[%clk 0:00:02.1]} 24. Rg1+ {[%clk 0:00:27]}
24... Kh5 {[%clk 0:00:02]} 25. Qc1 {[%clk 0:00:14.2]} 25... Qd4 {[%clk
0:00:01.7]} 26. f4 {[%clk 0:00:10]} 26... Rb8 {[%clk 0:00:02.6]} 27. Be2+ {[%clk
0:00:08.1]} 27... Kh6 {[%clk 0:00:03.1]} 28. f5 {[%clk 0:00:07]} 28... Qe3
{[%clk 0:00:02.2]} 29. b3 {[%clk 0:00:04.4]} 29... Qe4+ {[%clk 0:00:02.6]} 30.
Ka1 {[%clk 0:00:03.5]} 30... Qe5+ {[%clk 0:00:03.1]} 31. Kb1 {[%clk 0:00:02.8]}
31... Qd4 {[%clk 0:00:03.7]} 32. Bc4 {[%clk 0:00:01.9]} 32... Qe4+ {[%clk
0:00:03.3]} 33. Ka1 {[%clk 0:00:01.4]} 33... Qe3 {[%clk 0:00:03.7]} 0-1

[Event "*** Titled Tuesday Blitz"]
[Site "Chess.com"]
[Date "2020.11.03"]
[Round "3"]
[White "jaskol95"]
[Black "WonderChampion"]
[Result "1-0"]
[WhiteElo "2312"]
[BlackElo "2016"]
[TimeControl "180+1"]
[EndTime "10:30:52 PST"]
[Termination "jaskol95 won on time"]

1. d4 {[%clk 0:02:58.2]} 1... d5 {[%clk 0:02:59.2]} 2. Bf4 {[%clk 0:02:57.8]}
2... Nf6 {[%clk 0:02:56.3]} 3. e3 {[%clk 0:02:57.7]} 3... e6 {[%clk 0:02:55.2]}
4. c3 {[%clk 0:02:57.9]} 4... c5 {[%clk 0:02:53.5]} 5. Nd2 {[%clk 0:02:57.2]}
5... Nc6 {[%clk 0:02:49.8]} 6. Ngf3 {[%clk 0:02:56.7]} 6... cxd4 {[%clk
0:02:48.2]} 7. exd4 {[%clk 0:02:56.6]} 7... Bd6 {[%clk 0:02:46]} 8. Bg3 {[%clk
0:02:57.1]} 8... Bxg3 {[%clk 0:02:43.2]} 9. hxg3 {[%clk 0:02:56.9]} 9... O-O
{[%clk 0:02:43.4]} 10. Bd3 {[%clk 0:02:56.5]} 10... h6 {[%clk 0:02:41.4]} 11.
Ne5 {[%clk 0:02:56]} 11... Qc7 {[%clk 0:02:37.7]} 12. Ndf3 {[%clk 0:02:54.5]}
12... Ne4 {[%clk 0:02:32.2]} 13. Qe2 {[%clk 0:02:49.7]} 13... f5 {[%clk
0:02:25.9]} 14. Nxc6 {[%clk 0:02:37.9]} 14... bxc6 {[%clk 0:02:23.8]} 15. O-O
{[%clk 0:02:30.7]} 15... Bd7 {[%clk 0:02:18]} 16. Bxe4 {[%clk 0:02:25]} 16...
fxe4 {[%clk 0:02:16.8]} 17. Ne5 {[%clk 0:02:24.9]} 17... Rab8 {[%clk 0:02:12.3]}
18. b4 {[%clk 0:02:22.6]} 18... Qd6 {[%clk 0:02:01.7]} 19. a4 {[%clk 0:02:15.3]}
19... Rf6 {[%clk 0:01:56.1]} 20. a5 {[%clk 0:02:13.9]} 20... Qc7 {[%clk
0:01:51.2]} 21. f4 {[%clk 0:02:04.7]} 21... exf3 {[%clk 0:01:44.6]} 22. gxf3
{[%clk 0:02:04.5]} 22... Rbf8 {[%clk 0:01:39.6]} 23. Kg2 {[%clk 0:02:03.6]}
23... Qb7 {[%clk 0:01:28.9]} 24. Rae1 {[%clk 0:02:02.3]} 24... Be8 {[%clk
0:01:20.4]} 25. Nd3 {[%clk 0:01:57.8]} 25... Qf7 {[%clk 0:01:04.1]} 26. Nc5
{[%clk 0:01:48.8]} 26... Bd7 {[%clk 0:00:50.6]} 27. f4 {[%clk 0:01:47.1]} 27...
Rd8 {[%clk 0:00:44.4]} 28. Rf3 {[%clk 0:01:36.9]} 28... Kf8 {[%clk 0:00:35.1]}
29. Re3 {[%clk 0:01:35.9]} 29... Ke7 {[%clk 0:00:30.5]} 30. Qa6 {[%clk
0:00:55.6]} 30... g5 {[%clk 0:00:24.8]} 31. Nd3 {[%clk 0:00:31.3]} 31... Rg8
{[%clk 0:00:17.2]} 32. Ne5 {[%clk 0:00:23.4]} 32... Qe8 {[%clk 0:00:14.6]} 33.
Qxa7 {[%clk 0:00:20.5]} 33... Rg7 {[%clk 0:00:12.4]} 34. Qc5+ {[%clk 0:00:16.5]}
34... Kd8 {[%clk 0:00:04.7]} 35. Qd6 {[%clk 0:00:17]} 35... Qe7 {[%clk
0:00:03.8]} 36. Nxc6+ {[%clk 0:00:16.9]} 1-0

[Event "*** Titled Tuesday Blitz"]
[Site "Chess.com"]
[Date "2020.11.03"]
[Round "3"]
[White "AndrewMaco"]
[Black "S2PAc"]
[Result "1-0"]
[WhiteElo "2668"]
[BlackElo "2856"]
[TimeControl "180+1"]
[EndTime "10:30:54 PST"]
[Termination "AndrewMaco won by resignation"]

1. e4 {[%clk 0:02:59.8]} 1... c6 {[%clk 0:02:53.5]} 2. d4 {[%clk 0:03:00]} 2...
d5 {[%clk 0:02:54.1]} 3. e5 {[%clk 0:03:00.7]} 3... c5 {[%clk 0:02:54.4]} 4.
dxc5 {[%clk 0:03:00.2]} 4... Nc6 {[%clk 0:02:55]} 5. Nf3 {[%clk 0:03:00.4]} 5...
Bg4 {[%clk 0:02:54.7]} 6. a3 {[%clk 0:02:59.8]} 6... a6 {[%clk 0:02:55]} 7. b4
{[%clk 0:02:55.1]} 7... Nxe5 {[%clk 0:02:50.1]} 8. Nbd2 {[%clk 0:02:55.2]} 8...
Nxf3+ {[%clk 0:02:36.7]} 9. Nxf3 {[%clk 0:02:54.4]} 9... Nf6 {[%clk 0:02:37.2]}
10. Bb2 {[%clk 0:02:54.2]} 10... e6 {[%clk 0:02:36.4]} 11. Be2 {[%clk
0:02:52.3]} 11... Bxf3 {[%clk 0:02:36]} 12. Bxf3 {[%clk 0:02:51.9]} 12... Be7
{[%clk 0:02:36.6]} 13. O-O {[%clk 0:02:52]} 13... O-O {[%clk 0:02:36.5]} 14. c4
{[%clk 0:02:52.3]} 14... Qc7 {[%clk 0:02:26.1]} 15. cxd5 {[%clk 0:02:44.2]}
15... Nxd5 {[%clk 0:02:14.7]} 16. Bxd5 {[%clk 0:02:43.2]} 16... exd5 {[%clk
0:02:15.1]} 17. Qxd5 {[%clk 0:02:43]} 17... Rad8 {[%clk 0:02:13.7]} 18. Qf3
{[%clk 0:02:37.2]} 18... Qc6 {[%clk 0:02:07.5]} 19. Qg3 {[%clk 0:02:23.2]} 19...
Bf6 {[%clk 0:02:06.3]} 20. Bxf6 {[%clk 0:02:20.9]} 20... Qxf6 {[%clk 0:02:07.2]}
21. Qc7 {[%clk 0:02:16.4]} 21... Qc6 {[%clk 0:01:07.9]} 22. Qxc6 {[%clk
0:02:08.3]} 22... bxc6 {[%clk 0:01:08.8]} 23. Rad1 {[%clk 0:02:08.5]} 23... Rfe8
{[%clk 0:00:57.1]} 24. g3 {[%clk 0:02:08.2]} 24... f6 {[%clk 0:00:48.8]} 25. Kg2
{[%clk 0:02:07.9]} 25... Kf7 {[%clk 0:00:49.3]} 26. Kf3 {[%clk 0:02:06.6]} 26...
a5 {[%clk 0:00:49.8]} 27. h4 {[%clk 0:01:49.8]} 27... axb4 {[%clk 0:00:48.7]}
28. axb4 {[%clk 0:01:50.7]} 28... Ra8 {[%clk 0:00:43.5]} 29. Rd7+ {[%clk
0:01:45.6]} 29... Kg6 {[%clk 0:00:42.4]} 30. Rfd1 {[%clk 0:01:45.7]} 30... h5
{[%clk 0:00:33.1]} 31. Rc7 {[%clk 0:01:35.2]} 31... Ra3+ {[%clk 0:00:31.3]} 32.
Kg2 {[%clk 0:01:35.2]} 32... Rb3 {[%clk 0:00:31.6]} 33. Rdd7 {[%clk 0:01:33.5]}
33... Rg8 {[%clk 0:00:30.5]} 34. Rb7 {[%clk 0:01:31.5]} 34... Kf5 {[%clk
0:00:24.1]} 35. Rxg7 {[%clk 0:01:22.7]} 35... Ra8 {[%clk 0:00:21.8]} 36. Ra7
{[%clk 0:01:17.8]} 36... Rb8 {[%clk 0:00:15.3]} 37. Rgb7 {[%clk 0:01:12.1]}
37... Re8 {[%clk 0:00:15.2]} 38. Re7 {[%clk 0:01:08.9]} 38... Rb8 {[%clk
0:00:15.2]} 39. Ra4 {[%clk 0:00:53.3]} 39... Rd8 {[%clk 0:00:12.5]} 40. Re2
{[%clk 0:00:49.9]} 40... Rd4 {[%clk 0:00:12.5]} 41. Ra6 {[%clk 0:00:47.7]} 41...
Rbxb4 {[%clk 0:00:12.6]} 42. Rxc6 {[%clk 0:00:47.7]} 42... Rbc4 {[%clk
0:00:08.3]} 43. Ree6 {[%clk 0:00:37.4]} 43... Rd5 {[%clk 0:00:08.6]} 44. Rxf6+
{[%clk 0:00:37.2]} 44... Ke5 {[%clk 0:00:09.5]} 45. Rce6+ {[%clk 0:00:32.6]}
45... Kd4 {[%clk 0:00:09.9]} 46. Rf4+ {[%clk 0:00:27.5]} 46... Kxc5 {[%clk
0:00:10.3]} 47. Rxc4+ {[%clk 0:00:28.2]} 47... Kxc4 {[%clk 0:00:11.2]} 48. Rg6
{[%clk 0:00:28.8]} 48... Kd4 {[%clk 0:00:09.9]} 49. Rg5 {[%clk 0:00:28.7]} 1-0

[Event "*** Titled Tuesday Blitz"]
[Site "Chess.com"]
[Date "2020.11.03"]
[Round "3"]
[White "Kildepiotr"]
[Black "GMHess"]
[Result "0-1"]
[WhiteElo "2647"]
[BlackElo "2868"]
[TimeControl "180+1"]
[EndTime "10:30:55 PST"]
[Termination "GMHess won by resignation"]

1. Nf3 {[%clk 0:03:00.9]} 1... g6 {[%clk 0:02:59]} 2. d4 {[%clk 0:02:58.2]} 2...
Bg7 {[%clk 0:02:59.9]} 3. g3 {[%clk 0:02:58]} 3... d6 {[%clk 0:03:00.8]} 4. Bg2
{[%clk 0:02:58.5]} 4... e6 {[%clk 0:02:58.8]} 5. O-O {[%clk 0:02:58.7]} 5... Ne7
{[%clk 0:02:59.3]} 6. e4 {[%clk 0:02:59]} 6... a6 {[%clk 0:02:59.5]} 7. a4
{[%clk 0:02:58.3]} 7... b6 {[%clk 0:02:59.1]} 8. Nc3 {[%clk 0:02:55.6]} 8... Bb7
{[%clk 0:02:59.2]} 9. Ne1 {[%clk 0:02:50.3]} 9... Nd7 {[%clk 0:02:55.1]} 10. f4
{[%clk 0:02:48.9]} 10... c5 {[%clk 0:02:54.2]} 11. Be3 {[%clk 0:02:41.8]} 11...
O-O {[%clk 0:02:54.3]} 12. dxc5 {[%clk 0:02:33]} 12... Nxc5 {[%clk 0:02:38]} 13.
Nd3 {[%clk 0:02:27.3]} 13... Qc7 {[%clk 0:02:25.1]} 14. a5 {[%clk 0:02:20.6]}
14... b5 {[%clk 0:02:18.4]} 15. Nxc5 {[%clk 0:02:20.1]} 15... dxc5 {[%clk
0:02:19.3]} 16. e5 {[%clk 0:02:19.5]} 16... Bxg2 {[%clk 0:02:08.5]} 17. Kxg2
{[%clk 0:02:19]} 17... Nf5 {[%clk 0:02:04.3]} 18. Bf2 {[%clk 0:02:18.5]} 18...
Rfd8 {[%clk 0:02:02.2]} 19. Qf3 {[%clk 0:02:15.7]} 19... Nd4 {[%clk 0:01:50.7]}
20. Qe4 {[%clk 0:02:15.5]} 20... Nc6 {[%clk 0:01:32.1]} 21. Bxc5 {[%clk
0:02:08.5]} 21... Nxa5 {[%clk 0:01:03.2]} 22. Bd6 {[%clk 0:02:01.8]} 22... Qb6
{[%clk 0:01:02.3]} 23. b3 {[%clk 0:01:32.6]} 23... Rac8 {[%clk 0:00:42.4]} 24.
Ne2 {[%clk 0:01:28.4]} 24... Nb7 {[%clk 0:00:39.2]} 25. Be7 {[%clk 0:01:21.8]}
25... Rd2 {[%clk 0:00:36.3]} 26. Rac1 {[%clk 0:01:02.3]} 26... Qc6 {[%clk
0:00:20.4]} 27. Qxc6 {[%clk 0:00:55]} 27... Rxc6 {[%clk 0:00:21.3]} 28. Kf3
{[%clk 0:00:53.8]} 28... Rcxc2 {[%clk 0:00:15.1]} 29. Rxc2 {[%clk 0:00:53.6]}
29... Rxc2 {[%clk 0:00:16]} 30. Rd1 {[%clk 0:00:53.4]} 30... Bf8 {[%clk
0:00:15.9]} 31. Rd7 {[%clk 0:00:32.3]} 31... Bxe7 {[%clk 0:00:15.9]} 32. Rxe7
{[%clk 0:00:19.8]} 32... Na5 {[%clk 0:00:10.4]} 33. Nd4 {[%clk 0:00:17.5]} 33...
Rc3+ {[%clk 0:00:09.2]} 34. Ke4 {[%clk 0:00:17.7]} 34... Nxb3 {[%clk 0:00:09.7]}
35. Nxb3 {[%clk 0:00:12.4]} 35... Rxb3 {[%clk 0:00:10.6]} 36. Ra7 {[%clk
0:00:12.2]} 36... Ra3 {[%clk 0:00:10.9]} 37. Kd4 {[%clk 0:00:12]} 37... Kg7
{[%clk 0:00:11.1]} 38. Kc5 {[%clk 0:00:11.7]} 38... Ra2 {[%clk 0:00:11.4]} 39.
Kd6 {[%clk 0:00:11.1]} 39... Rxh2 {[%clk 0:00:09.5]} 40. Rxa6 {[%clk 0:00:09.9]}
40... Rg2 {[%clk 0:00:09.4]} 41. Ke7 {[%clk 0:00:09.8]} 41... Rxg3 {[%clk
0:00:09.5]} 42. Rb6 {[%clk 0:00:08.5]} 42... Rf3 {[%clk 0:00:09.6]} 0-1

[Event "*** Titled Tuesday Blitz"]
[Site "Chess.com"]
[Date "2020.11.03"]
[Round "3"]
[White "CrazyMartian"]
[Black "Natalya_Buksa"]
[Result "0-1"]
[WhiteElo "2309"]
[BlackElo "2537"]
[TimeControl "180+1"]
[EndTime "10:30:56 PST"]
[Termination "Natalya_Buksa won on time"]

1. d4 {[%clk 0:02:55.8]} 1... d5 {[%clk 0:02:59.8]} 2. c4 {[%clk 0:02:55.9]}
2... e6 {[%clk 0:03:00.4]} 3. Nc3 {[%clk 0:02:56.2]} 3... Be7 {[%clk 0:03:00.8]}
4. cxd5 {[%clk 0:02:52.7]} 4... exd5 {[%clk 0:03:01.7]} 5. Bf4 {[%clk
0:02:53.2]} 5... Nf6 {[%clk 0:03:01.2]} 6. e3 {[%clk 0:02:53.4]} 6... Bf5 {[%clk
0:03:01.2]} 7. Bd3 {[%clk 0:02:53.1]} 7... Bxd3 {[%clk 0:02:56.6]} 8. Qxd3
{[%clk 0:02:54]} 8... O-O {[%clk 0:02:56.9]} 9. Nf3 {[%clk 0:02:53.4]} 9... c6
{[%clk 0:02:57.3]} 10. O-O {[%clk 0:02:53.3]} 10... Nbd7 {[%clk 0:02:57.8]} 11.
Ne5 {[%clk 0:02:52.6]} 11... Nxe5 {[%clk 0:02:57.5]} 12. Bxe5 {[%clk 0:02:52.7]}
12... Bd6 {[%clk 0:02:57.1]} 13. Bxd6 {[%clk 0:02:50.8]} 13... Qxd6 {[%clk
0:02:56.9]} 14. a3 {[%clk 0:02:49.9]} 14... Rae8 {[%clk 0:02:52.4]} 15. b4
{[%clk 0:02:49.7]} 15... a6 {[%clk 0:02:52.9]} 16. Rac1 {[%clk 0:02:48]} 16...
Ne4 {[%clk 0:02:52.9]} 17. Nxe4 {[%clk 0:02:47.8]} 17... Rxe4 {[%clk 0:02:49.9]}
18. Rc5 {[%clk 0:02:44.9]} 18... f5 {[%clk 0:02:49.8]} 19. g3 {[%clk 0:02:42]}
19... h5 {[%clk 0:02:43.9]} 20. Kg2 {[%clk 0:02:32.1]} 20... h4 {[%clk
0:02:43.6]} 21. f3 {[%clk 0:02:31.8]} 21... Re6 {[%clk 0:02:41.9]} 22. Rc2
{[%clk 0:02:27.7]} 22... Rg6 {[%clk 0:02:40.5]} 23. f4 {[%clk 0:02:22.6]} 23...
Qe6 {[%clk 0:02:33.5]} 24. Rf3 {[%clk 0:02:11.6]} 24... Rh6 {[%clk 0:02:28.4]}
25. gxh4 {[%clk 0:02:05]} 25... Rxh4 {[%clk 0:02:26.7]} 26. Rg3 {[%clk
0:02:05.2]} 26... Kf7 {[%clk 0:02:24.2]} 27. a4 {[%clk 0:02:01.6]} 27... Rfh8
{[%clk 0:02:24.1]} 28. Kg1 {[%clk 0:02:01.2]} 28... Rh3 {[%clk 0:02:22.7]} 29.
Rcg2 {[%clk 0:01:58.2]} 29... Rxg3 {[%clk 0:02:20.5]} 30. Rxg3 {[%clk
0:01:57.9]} 30... g6 {[%clk 0:02:18.1]} 31. Qc2 {[%clk 0:01:39.8]} 31... Qe7
{[%clk 0:02:17.2]} 32. Qb1 {[%clk 0:01:34.9]} 32... Rh4 {[%clk 0:02:04.9]} 33.
Kg2 {[%clk 0:01:23.6]} 33... Qe8 {[%clk 0:01:56.2]} 34. Qd3 {[%clk 0:01:16.2]}
34... Rh8 {[%clk 0:01:47.5]} 35. a5 {[%clk 0:01:14.5]} 35... Qf8 {[%clk
0:01:47.2]} 36. Qb1 {[%clk 0:01:14.1]} 36... Qh6 {[%clk 0:01:46.6]} 37. h3
{[%clk 0:01:14.2]} 37... Qh5 {[%clk 0:01:45.7]} 38. Qf1 {[%clk 0:01:05.9]} 38...
Re8 {[%clk 0:01:44]} 39. Qf3 {[%clk 0:01:04.8]} 39... Qh8 {[%clk 0:01:34.9]} 40.
Kh2 {[%clk 0:01:04.7]} 40... Re6 {[%clk 0:01:35.2]} 41. Rg2 {[%clk 0:00:55.8]}
41... Qf8 {[%clk 0:01:33.4]} 42. Qg3 {[%clk 0:00:41.2]} 42... Qxb4 {[%clk
0:01:30.9]} 43. Qh4 {[%clk 0:00:39.5]} 43... Qf8 {[%clk 0:01:29.3]} 44. Qh7+
{[%clk 0:00:19.5]} 44... Qg7 {[%clk 0:01:29.4]} 45. Qh4 {[%clk 0:00:15.6]} 45...
Rxe3 {[%clk 0:01:27.3]} 46. Qd8 {[%clk 0:00:15.6]} 46... Re7 {[%clk 0:01:26]}
47. Qd6 {[%clk 0:00:15.1]} 47... Qf6 {[%clk 0:01:25.2]} 48. Qb8 {[%clk
0:00:13.7]} 48... Qxd4 {[%clk 0:01:24.4]} 49. h4 {[%clk 0:00:09.5]} 49... Qf6
{[%clk 0:01:23.5]} 50. Kh3 {[%clk 0:00:08.3]} 50... d4 {[%clk 0:01:17.6]} 51. h5
{[%clk 0:00:08.4]} 51... Re3+ {[%clk 0:01:15.6]} 52. Rg3 {[%clk 0:00:07.4]}
52... Rxg3+ {[%clk 0:01:11.2]} 53. Kxg3 {[%clk 0:00:08.3]} 53... gxh5 {[%clk
0:01:11.7]} 54. Qc8 {[%clk 0:00:04.3]} 54... Qe6 {[%clk 0:01:01.7]} 55. Qh8
{[%clk 0:00:02.1]} 55... d3 {[%clk 0:00:58]} 0-1